fUST/lending_fUST_20251022
["ID","MTS","AMOUNT","RATE_DAILY","PERIOD"]
[392005729,1761084708841,500.0,0.00023937,2]
[392005730,1761084708885,500.0,0.00023937,2]
[392005731,1761084708924,500.0,0.00023937,2]
[392005732,1761084708961,455.21171045,0.00023937,2]
[392005733,1761084708994,500.0,0.00023937,2]
[392005734,1761084709036,500.0,0.00023937,2]
[392005735,1761084709078,500.0,0.00023937,2]
[392005736,1761084709131,322.23376491,0.00023937,2]
[392005737,1761084711818,160.42379468,0.00023937,2]
[392005738,1761084713224,229.75087521,0.00023937,2]
[392005739,1761084713737,170.52323732,0.00023999,2]
[392005740,1761084713774,500.0,0.00023937,2]
[392005741,1761084713817,500.0,0.00023937,2]
[392005742,1761084713855,500.0,0.00023937,2]
[392005743,1761084713893,500.0,0.00023937,2]
[392005744,1761084714104,500.0,0.00023937,2]
[392005745,1761084714162,500.0,0.00023937,2]
[392005746,1761084714204,500.0,0.00023937,2]
[392005747,1761084714243,500.0,0.00023937,2]
[392005748,1761084714289,500.0,0.00023937,2]
[392005749,1761084714327,500.0,0.00023937,2]
[392005750,1761084714357,150.0,0.00023989,2]
[392005751,1761084714389,211.86661743,0.00023937,2]
[392005752,1761084714417,298.84095033,0.00023937,2]
[392005753,1761084714510,300.0,0.00023989,2]
[392005754,1761084714991,450.0,0.00023989,2]
[392005755,1761084715062,600.0,0.00023989,2]
[392005756,1761084715468,750.0,0.00023989,2]
[392005757,1761084715751,802.3336804,0.00023989,2]
[392005758,1761084730564,10000.01,0.00023895,2]
[392005759,1761084742065,150.0,0.00020083,2]
[392005760,1761084742477,150.0,0.00021908,2]
[392005761,1761084742932,154.62,0.00023734,2]
[392005762,1761084746895,150.0,0.00013554,30]
[392005763,1761084747355,150.0,0.00014786,30]
[392005764,1761084747804,150.0,0.00016018,30]
[392005765,1761084748209,150.0,0.0001725,30]
[392005766,1761084748637,150.0,0.00018483,30]
[392005767,1761084749054,150.0,0.00019715,30]
[392005768,1761084749489,154.62,0.00020947,30]
[392005769,1761084765382,1000.0,0.00023937,2]
[392005770,1761084765614,1000.0,0.00023937,2]
[392005771,1761084765872,1000.0,0.00023937,2]
[392005772,1761084766123,1000.0,0.00023937,2]
[392005773,1761084766366,1000.0,0.00023937,2]
[392005774,1761084766624,1000.0,0.00023937,2]
[392005775,1761084766919,1000.0,0.00023937,2]
[392005776,1761084767178,1000.0,0.00023944,2]
[392005777,1761084782753,490.77,0.00023838,2]
[392005778,1761084782776,10000.01,0.00023838,2]
[392005779,1761084782801,10000.01,0.00023838,2]
[392005780,1761084782824,10000.01,0.00023838,2]
[392005781,1761084782847,10000.01,0.00023838,2]
[392005782,1761084782870,10000.01,0.00023838,2]
[392005783,1761084782896,10000.01,0.00023838,2]
[392005784,1761084782921,10000.01,0.00023838,2]
[392005785,1761084782946,10000.01,0.00023838,2]
[392005786,1761084782972,10000.01,0.00023838,2]
[392005787,1761084788398,339.97,0.00023828,10]
[392005788,1761084792859,156.17853297,0.00022869,2]
[392005789,1761084794516,-355.53893343,0.00023838,2]
[392005791,1761084797654,-300.46599168,0.00023838,2]
[392005792,1761084799327,-593.01278351,0.00023838,2]
[392005793,1761084800989,283.31,0.00023828,10]
[392005794,1761084805176,-213.54711765,0.00023838,2]
[392005795,1761084808056,-206.74150667,0.00023838,2]
[392005796,1761084812740,483.59,0.00023828,10]
[392005797,1761084814282,-211.27483926,0.00023838,2]
[392005798,1761084816782,-168.49803109,0.00023838,2]
[392005799,1761084817237,150.0,0.00020113,2]
[392005800,1761084817638,150.0,0.00021941,2]
[392005801,1761084818051,150.0,0.00023769,2]
[392005802,1761084820692,-206.43739216,0.00023838,2]
[392005803,1761084821533,150.0,0.00013795,30]
[392005804,1761084822501,150.0,0.00015049,30]
[392005805,1761084822965,150.0,0.00016303,30]
[392005806,1761084823368,150.0,0.00017557,30]
[392005807,1761084824543,-400.16,0.00023838,2]
[392005808,1761084824596,402.99,0.00023828,10]
[392005809,1761084828412,206.43739216,0.00023838,2]
[392005810,1761084829807,-293.08938649,0.00023838,2]
[392005811,1761084832926,-295.99291503,0.00023838,2]
[392005812,1761084836689,335.82,0.00023828,10]
[392005813,1761084838076,-258.15826098,0.00023838,2]
[392005814,1761084842493,300.0,0.00023837,2]
[392005815,1761084844131,-285.61960498,0.00023838,2]
[392005816,1761084847389,-186.54607078,0.00023838,2]
[392005817,1761084847962,279.85,0.00023828,10]
[392005818,1761084850938,1533.02016748,0.00023838,2]
[392005819,1761084852916,-515.39950302,0.00023838,2]
[392005820,1761084859722,233.21,0.00023828,10]
[392005821,1761084870919,194.34,0.00023828,10]
[392005822,1761084871711,282.88188827,0.00023837,2]
[392005823,1761084871743,602.82268019,0.00023837,2]
[392005824,1761084872627,500.0,0.00023837,2]
[392005825,1761084872657,454.87908793,0.00023837,2]
[392005826,1761084872685,377.2342183,0.00023837,2]
[392005827,1761084872715,500.0,0.00023837,2]
[392005828,1761084872751,500.0,0.00023837,2]
[392005829,1761084872782,500.0,0.00023837,2]
[392005830,1761084872814,483.4760327,0.00023837,2]
[392005831,1761084872838,16.5239673,0.00023837,2]
[392005832,1761084872867,500.0,0.00023837,2]
[392005833,1761084872897,500.0,0.00023837,2]
[392005834,1761084872947,500.0,0.00023837,2]
[392005835,1761084872983,500.0,0.00023837,2]
[392005836,1761084873015,500.0,0.00023837,2]
[392005837,1761084873046,500.0,0.00023837,2]
[392005838,1761084873077,500.0,0.00023837,2]
[392005839,1761084873109,500.0,0.00023837,2]
[392005840,1761084873139,194.33230089,0.00023837,2]
[392005841,1761084873169,500.0,0.00023837,2]
[392005842,1761084873200,577.83569477,0.00023837,2]
[392005843,1761084873230,500.0,0.00023837,2]
[392005844,1761084873261,500.0,0.00023837,2]
[392005845,1761084873297,500.0,0.00023837,2]
[392005846,1761084873331,500.0,0.00023837,2]
[392005847,1761084873361,311.74938838,0.00023837,2]
[392005848,1761084873390,480.44644386,0.00023837,2]
[392005849,1761084874765,701.9455738,0.00023838,2]
[392005850,1761084881307,161.95,0.00023828,10]
[392005851,1761084891433,150.0,0.00020447,2]
[392005852,1761084891679,809.8,0.00023828,10]
[392005853,1761084891869,95.426631,0.00022305,2]
[392005854,1761084891900,54.573369,0.00022305,2]
[392005855,1761084895708,150.0,0.00013408,30]
[392005856,1761084901191,300.0,0.00023837,2]
[392005857,1761084901868,300.0,0.00023837,2]
[392005858,1761084901897,300.0,0.00023837,2]
[392005859,1761084901969,300.0,0.00023837,2]
[392005860,1761084902456,300.0,0.00023837,2]
[392005861,1761084902729,1200.0,0.00023837,2]
[392005862,1761084905379,5000.0,0.00023838,2]
[392005863,1761084913202,2095.436631,0.00023838,2]
[392005864,1761084913233,2904.563369,0.00023838,2]
[392005865,1761084928160,2000.0,0.00035036,30]
[392005866,1761084930015,1975.8513831,0.00023838,2]
[392005867,1761084961770,150.0,0.00020451,2]
[392005868,1761084962203,1600.0,0.00035036,30]
[392005869,1761084962238,150.0,0.0002231,2]
[392005870,1761084962278,300.0,0.00023837,2]
[392005872,1761084983524,200.0,0.00035036,120]
[392005873,1761084988750,519.62934271,0.00023769,2]
[392005875,1761085022233,300.0,0.00023837,2]
[392005877,1761085031804,150.0,0.00020065,2]
[392005878,1761085032234,150.0,0.0002189,2]
[392005879,1761085032655,150.0,0.00023714,2]
[392005880,1761085075462,298.26001,0.00030137,120]
[392005881,1761085082647,300.0,0.00023837,2]
[392005882,1761085100105,150.0,0.00020118,2]
[392005883,1761085101016,150.0,0.00021947,2]
[392005884,1761085101459,150.0,0.00023776,2]
[392005885,1761085114845,306.17463232,0.0002383,2]
[392005886,1761085126239,1520.95310816,0.00023838,2]
[392005889,1761085143045,300.0,0.00023837,2]
[392005890,1761085166972,150.0,0.00020063,2]
[392005891,1761085180662,196.0,0.00016,2]
[392005892,1761085180729,26.83816471,0.0001614,2]
[392005893,1761085180758,169.16183529,0.0001614,2]
[392005894,1761085180796,196.0,0.0001628,2]
[392005895,1761085180883,196.0,0.0001642,2]
[392005896,1761085180943,196.0,0.0001656,2]
[392005897,1761085181013,196.0,0.000167,2]
[392005898,1761085181082,196.0,0.0001684,2]
[392005899,1761085181144,196.0,0.0001698,2]
[392005900,1761085181207,196.0,0.0001712,2]
[392005901,1761085181265,196.0,0.0001726,2]
[392005902,1761085181327,196.0,0.000174,2]
[392005903,1761085181391,196.0,0.0001754,2]
[392005904,1761085181449,196.0,0.0001768,2]
[392005905,1761085181511,196.0,0.0001782,2]
[392005906,1761085181570,196.0,0.0001796,2]
[392005907,1761085181626,215.73286606,0.000181,2]
[392005908,1761085193504,1208.70117179,0.00023838,2]
[392005909,1761085201183,300.0,0.00023837,2]
[392005910,1761085201562,5000.0,0.00023838,2]
[392005911,1761085201885,300.0,0.00023837,2]
[392005912,1761085201997,258.41412686,0.00023837,2]
[392005913,1761085202048,41.58587314,0.00023837,2]
[392005914,1761085202118,300.0,0.00023837,2]
[392005915,1761085202182,300.0,0.00023837,2]
[392005916,1761085203209,1200.0,0.00023837,2]
[392005917,1761085204800,454.67567481,0.00023769,2]
[392005918,1761085223960,5000.0,0.00023838,2]
[392005919,1761085232505,2703.74845205,0.00023838,2]
[392005920,1761085232530,1770.78522262,0.00023838,2]
[392005921,1761085240923,-5000.0,0.00023562,14]
[392005922,1761085241048,-300.0,0.000238,2]
[392005923,1761085241187,-4421.71516976,0.00023838,2]
[392005924,1761085241218,-10000.01,0.00023838,2]
[392005925,1761085241369,-10000.01,0.00023838,2]
[392005926,1761085241510,-10000.01,0.00023838,2]
[392005927,1761085241641,-10000.01,0.00023838,2]
[392005928,1761085241787,-10000.01,0.00023838,2]
[392005929,1761085241939,-10000.01,0.00023838,2]
[392005930,1761085242107,-10000.01,0.00023838,2]
[392005931,1761085242268,-10000.01,0.00023838,2]
[392005932,1761085247214,300.0,0.000238,2]
[392005933,1761085248545,5000.0,0.00023838,2]
[392005934,1761085250510,434.16495538,0.000238,2]
[392005935,1761085256645,1078.49709297,0.00023838,2]
[392005936,1761085258885,300.0,0.000238,2]
[392005937,1761085262210,300.0,0.00023837,2]
[392005938,1761085264379,2587.34795165,0.00023838,2]
[392005939,1761085264407,2412.65204835,0.00023838,2]
[392005940,1761085269648,300.0,0.000238,2]
[392005941,1761085272407,5000.0,0.00023838,2]
[392005942,1761085280169,200.0,0.00035077,120]
[392005943,1761085280217,300.0,0.000238,2]
[392005944,1761085288049,1987.35795165,0.00023838,2]
[392005945,1761085288080,3012.64204835,0.00023838,2]
[392005946,1761085290657,300.0,0.000238,2]
[392005947,1761085291670,300.0,0.000238,2]
[392005948,1761085294106,413.32,0.00023828,3]
[392005949,1761085295661,150.0,0.0002031,2]
[392005950,1761085296077,190.45,0.00022156,2]
[392005951,1761085296348,5000.0,0.00023838,2]
[392005952,1761085299944,150.0,0.00013624,30]
[392005953,1761085300348,150.0,0.00014862,30]
[392005954,1761085300668,196.0,0.00016,2]
[392005955,1761085300765,137.59795165,0.00016101,30]
[392005956,1761085300806,12.40204835,0.00016101,30]
[392005957,1761085300992,196.0,0.0001635,2]
[392005958,1761085301083,196.0,0.000167,2]
[392005959,1761085301154,196.0,0.0001705,2]
[392005960,1761085301197,163.24,0.00017339,30]
[392005961,1761085301231,196.0,0.000174,2]
[392005962,1761085301315,196.0,0.0001775,2]
[392005963,1761085301409,359.4675163,0.000181,2]
[392005964,1761085301461,300.0,0.000238,2]
[392005965,1761085301583,204.05,0.00018578,30]
[392005966,1761085302016,244.86,0.00019817,30]
[392005967,1761085302428,285.67,0.00021055,30]
[392005968,1761085302885,326.48,0.00022294,30]
[392005969,1761085303301,367.29,0.00023532,30]
[392005970,1761085304951,206.66,0.00023828,3]
[392005971,1761085311373,1624.647239,0.00022972,2]
[392005972,1761085312133,4925.24319635,0.00023838,2]
[392005973,1761085312162,74.75680365,0.00023838,2]
[392005974,1761085312194,300.0,0.000238,2]
[392005975,1761085315798,619.98,0.00023828,3]
[392005976,1761085320536,5000.0,0.00023838,2]
[392005977,1761085322278,300.0,0.00023837,2]
[392005978,1761085323053,300.0,0.000238,2]
[392005980,1761085329505,3405.27319635,0.00023838,2]
[392005981,1761085329532,658.87796748,0.00023838,2]
[392005982,1761085331499,160.0,0.00023643,2]
[392005983,1761085337378,5000.0,0.00023838,2]
[392005984,1761085338077,1433.5906968,0.00022965,2]
[392005985,1761085345413,2747.54133572,0.00023838,2]
[392005986,1761085345443,2252.45866428,0.00023838,2]
[392005987,1761085349058,168.0,0.00023828,2]
[392005988,1761085353168,272.0,0.00021852,120]
[392005989,1761085354422,272.0,0.00022944,120]
[392005990,1761085355081,168.0,0.00023813,2]
[392005991,1761085355679,272.0,0.00024092,120]
[392005992,1761085357172,272.0,0.00025296,120]
[392005993,1761085358491,272.0,0.00026561,120]
[392005994,1761085359756,272.0,0.00027889,120]
[392005995,1761085359980,168.0,0.00023384,2]
[392005996,1761085361044,272.0,0.00029284,120]
[392005997,1761085361147,5000.0,0.00023838,2]
[392005998,1761085368927,2243.55133572,0.00023838,2]
[392005999,1761085368956,2756.44866428,0.00023838,2]
[392006000,1761085371037,150.0,0.00020005,2]
[392006001,1761085371482,242.25,0.00021824,2]
[392006002,1761085371905,363.37,0.00023643,2]
[392006003,1761085375076,168.0,0.0002369,2]
[392006004,1761085375331,150.0,0.00013571,30]
[392006005,1761085375754,150.0,0.00014805,30]
[392006006,1761085376167,155.73,0.00016038,30]
[392006007,1761085376609,207.64,0.00017272,30]
[392006008,1761085377030,259.55,0.00018506,30]
[392006009,1761085377447,311.46,0.00019739,30]
[392006010,1761085377871,363.37,0.00020973,30]
[392006011,1761085378305,415.28,0.00022207,30]
[392006012,1761085378695,467.19,0.00023441,30]
[392006013,1761085382216,300.0,0.00023837,2]
[392006014,1761085384085,3539.72133572,0.00023838,2]
[392006015,1761085384114,1460.27866428,0.00023838,2]
[392006016,1761085391904,5000.0,0.00023838,2]
[392006017,1761085396180,-3539.73133572,0.00023838,2]
[392006018,1761085397962,-10000.01,0.00023838,2]
[392006019,1761085398088,-10000.01,0.00023838,2]
[392006020,1761085398227,-10000.01,0.00023838,2]
[392006021,1761085398387,-10000.01,0.00023838,2]
[392006022,1761085398519,-10000.01,0.00023838,2]
[392006023,1761085398650,-10000.01,0.00023838,2]
[392006024,1761085398774,-10000.01,0.00023838,2]
[392006025,1761085401598,-10000.01,0.00023838,2]
[392006026,1761085401723,-10000.01,0.00023838,2]
[392006027,1761085406958,5000.0,0.000236,14]
[392006028,1761085415348,5000.0,0.00023838,2]
[392006029,1761085419164,-0.01,0.00023838,2]
[392006030,1761085419269,-10000.01,0.00023838,2]
[392006031,1761085419395,-10000.01,0.00023838,2]
[392006032,1761085419548,-10000.01,0.00023838,2]
[392006033,1761085419674,-10000.01,0.00023838,2]
[392006034,1761085419787,-10000.01,0.00023838,2]
[392006035,1761085419944,-10000.01,0.00023838,2]
[392006036,1761085420067,-10000.01,0.00023838,2]
[392006037,1761085420234,-10000.01,0.00023838,2]
[392006038,1761085420361,-10000.01,0.00023838,2]
[392006039,1761085420660,0.01,0.00016,2]
[392006040,1761085420692,195.99,0.00016,2]
[392006041,1761085420743,196.0,0.00016124,2]
[392006042,1761085420817,196.0,0.00016247,2]
[392006043,1761085420894,196.0,0.00016371,2]
[392006044,1761085420963,196.0,0.00016494,2]
[392006045,1761085421037,196.0,0.00016618,2]
[392006046,1761085421105,196.0,0.00016741,2]
[392006047,1761085421182,196.0,0.00016865,2]
[392006048,1761085421248,196.0,0.00016988,2]
[392006049,1761085421318,196.0,0.00017112,2]
[392006050,1761085421391,196.0,0.00017235,2]
[392006051,1761085421461,196.0,0.00017359,2]
[392006052,1761085421533,196.0,0.00017482,2]
[392006053,1761085421607,196.0,0.00017606,2]
[392006054,1761085421677,196.0,0.00017729,2]
[392006055,1761085421750,196.0,0.00017853,2]
[392006056,1761085421817,196.0,0.00017976,2]
[392006057,1761085430387,5000.0,0.00018,2]
[392006058,1761085431132,-282.57337582,0.000181,2]
[392006059,1761085431165,-572.82818391,0.00023754,2]
[392006060,1761085432636,2326.32966201,0.00020818,2]
[392006061,1761085438227,5000.0,0.00023838,2]
[392006062,1761085446267,5000.0,0.00023838,2]
[392006063,1761085446720,0.01,0.00020273,2]
[392006064,1761085446749,225.44,0.00020273,2]
[392006065,1761085447119,450.9,0.00022116,2]
[392006066,1761085451197,150.0,0.00013597,30]
[392006067,1761085451607,193.24,0.00014833,30]
[392006068,1761085452020,289.86,0.00016069,30]
[392006069,1761085452444,-2943.06884221,0.00023838,2]
[392006070,1761085452621,386.48,0.00017305,30]
[392006071,1761085452687,-4113.87231558,0.00023838,2]
[392006072,1761085452867,483.1,0.00018541,30]
[392006073,1761085453291,579.72,0.00019777,30]
[392006074,1761085453727,676.34,0.00021013,30]
[392006075,1761085454186,33.10536884,0.00022249,30]
[392006076,1761085454217,739.85463116,0.00022249,30]
[392006077,1761085454560,5000.0,0.00023853,2]
[392006078,1761085454593,869.58,0.00023485,30]
[392006081,1761085462654,3390.57536884,0.00023853,2]
[392006082,1761085462677,1609.42463116,0.00023853,2]
[392006083,1761085470338,5000.0,0.00023853,2]
[392006084,1761085478342,3390.58536884,0.00023853,2]
[392006085,1761085478369,1609.41463116,0.00023853,2]
[392006086,1761085482322,218.68627011,0.00023738,2]
[392006087,1761085486177,5000.0,0.00023853,2]
[392006088,1761085494254,3171.90909873,0.00023853,2]
[392006089,1761085494278,1828.09090127,0.00023853,2]
[392006090,1761085502088,5000.0,0.00023853,2]
[392006091,1761085511156,3171.91909873,0.00023853,2]
[392006092,1761085511187,1828.08090127,0.00023853,2]
[392006093,1761085519471,2513.15341523,0.00023853,2]
[392006094,1761085523475,178.01,0.00020277,2]
[392006095,1761085523885,356.01,0.0002212,2]
[392006096,1761085527578,5000.0,0.00023853,2]
[392006097,1761085527696,124.7556835,0.00013726,30]
[392006098,1761085527731,25.2443165,0.00013726,30]
[392006099,1761085528139,152.58,0.00014974,30]
[392006100,1761085528540,228.86,0.00016222,30]
[392006101,1761085528937,305.15,0.00017469,30]
[392006102,1761085529432,381.44,0.00018717,30]
[392006103,1761085529887,457.73,0.00019965,30]
[392006104,1761085544969,-534.02,0.00021213,30]
[392006105,1761085560082,-420.22219541,0.00022461,30]
[392006106,1761085562012,-190.07780459,0.00022461,30]
[392006107,1761085577091,-300.0,0.00023614,2]
[392006108,1761085580540,200.0,0.00035078,120]
[392006109,1761085589434,-310.69305256,0.00023615,14]
[392006110,1761085591725,-441.14,0.00023615,14]
[392006111,1761085592181,-4248.16694744,0.00023615,14]
[392006112,1761085592342,-5000.0,0.00023615,2]
[392006113,1761085592464,-482.16581527,0.00023615,2]
[392006114,1761085598220,-173.75805576,0.00023709,30]
[392006115,1761085600610,248.27,0.00020054,2]
[392006116,1761085601053,496.55,0.00021878,2]
[392006117,1761085602793,5000.0,0.00023615,2]
[392006118,1761085604859,150.0,0.00013862,30]
[392006119,1761085605273,212.81,0.00015122,30]
[392006120,1761085605685,319.21,0.00016382,30]
[392006121,1761085606097,425.61,0.00017642,30]
[392006122,1761085606498,532.01,0.00018902,30]
[392006123,1761085606933,638.42,0.00020162,30]
[392006124,1761085607325,744.82,0.00021423,30]
[392006125,1761085607721,851.22,0.00022683,30]
[392006126,1761085608135,-195.23332667,0.00023701,2]
[392006127,1761085610434,-152.11999997,0.00023701,2]
[392006128,1761085618987,3724.04108194,0.00020818,2]
[392006129,1761085624916,5000.0,0.00023701,2]
[392006130,1761085648046,424.74891806,0.00023701,2]
[392006131,1761085648076,4575.25108194,0.00023701,2]
[392006132,1761085667156,500.0,0.00023207,6]
[392006133,1761085669398,500.0,0.00023207,6]
[392006134,1761085670771,4424.75891806,0.00023701,2]
[392006135,1761085670799,575.24108194,0.00023701,2]
[392006136,1761085671639,500.0,0.00023207,6]
[392006137,1761085673872,500.0,0.00023207,6]
[392006138,1761085676101,500.0,0.00023207,6]
[392006139,1761085676883,239.41,0.00020127,2]
[392006140,1761085677279,478.82,0.00021957,2]
[392006141,1761085678313,228.57,0.00023207,6]
[392006142,1761085678481,5000.0,0.00023701,2]
[392006143,1761085681222,150.0,0.00014132,30]
[392006144,1761085681743,205.21,0.00015417,30]
[392006145,1761085682692,307.81,0.00016702,30]
[392006146,1761085683164,410.42,0.00017986,30]
[392006147,1761085683845,513.02,0.00019271,30]
[392006148,1761085684262,391.50891806,0.00020556,30]
[392006149,1761085684294,224.12108194,0.00020556,30]
[392006150,1761085684708,718.23,0.00021841,30]
[392006151,1761085685157,820.83,0.00023125,30]
[392006152,1761085693945,5000.0,0.00023699,2]
[392006153,1761085701740,2114.59912123,0.000176,2]
[392006154,1761085701811,901.15954901,0.00023699,2]
[392006155,1761085706073,221.07024782,0.0001,2]
[392006156,1761085706103,65.53724535,0.0001,2]
[392006157,1761085706324,296.42886265,0.0002,2]
[392006158,1761085707607,357.96911203,0.00022,2]
[392006159,1761085709211,9280.07477997,0.0002,2]
[392006160,1761085709236,5267.33788596,0.0002,2]
[392006161,1761085710960,687.73446572,0.0001,7]
[392006162,1761085711016,4044.93764832,0.00017,2]
[392006163,1761085711052,3541.8653743,0.00017,2]
[392006164,1761085711549,6458.1446257,0.00022,5]
[392006165,1761085711575,10000.01,0.00022,5]
[392006166,1761085711602,10000.01,0.00022,5]
[392006167,1761085713082,-4691.79836796,0.0002,20]
[392006168,1761085713329,-616.41326408,0.0002,20]
[392006169,1761085713363,-16.99728189,0.00022,5]
[392006170,1761085720058,3038.9377948,0.0002,2]
[392006171,1761085725120,150.000001,0.00035078,30]
[392006172,1761085728050,-5000.0,0.00023228,2]
[392006173,1761085742106,0.01,0.00022734,2]
[392006174,1761085742136,3663.6226579,0.00022734,2]
[392006175,1761085746330,5000.0,0.00023463,2]
[392006176,1761085754353,225.96,0.00020042,2]
[392006177,1761085754750,451.92,0.00021864,2]
[392006178,1761085756142,-1584.88464569,0.00023463,2]
[392006179,1761085759088,150.0,0.00014305,30]
[392006180,1761085759506,193.68,0.00015605,30]
[392006181,1761085759919,290.52,0.00016906,30]
[392006182,1761085760369,387.36,0.00018206,30]
[392006183,1761085760617,-169.64000003,0.00023463,2]
[392006184,1761085760780,484.2,0.00019507,30]
[392006185,1761085761243,581.04,0.00020807,30]
[392006186,1761085761698,677.88,0.00022108,30]
[392006187,1761085762066,774.72,0.00023408,30]
[392006188,1761085769044,782.73,0.00023463,2]
[392006189,1761085769076,1273.8957733,0.00023463,2]
[392006190,1761085777814,5000.0,0.00023463,2]
[392006192,1761085801013,3726.1142267,0.00023463,2]
[392006193,1761085801047,1273.8857733,0.00023463,2]
[392006194,1761085801116,2042.35242273,0.00020818,2]
[392006195,1761085823706,5000.0,0.00023463,2]
[392006212,1761085832368,200.92,0.00020067,2]
[392006231,1761085832768,-1809.49332446,0.00023463,2]
[392006232,1761085832780,-1435.98202982,0.00023463,2]
[392006233,1761085832790,-200.0,0.00023463,2]
[392006234,1761085832799,-300.0,0.000235,2]
[392006235,1761085832811,-300.0,0.000235,2]
[392006236,1761085832820,-300.0,0.000235,2]
[392006237,1761085832830,-249.0,0.00023699,2]
[392006238,1761085832839,-300.0,0.00023699,2]
[392006239,1761085832849,-118.51797043,0.00023699,2]
[392006240,1761085832860,-1081.48202957,0.00023699,2]
[392006241,1761085832870,-26.66753045,0.000237,30]
[392006242,1761085832881,-404.05,0.000237,30]
[392006243,1761085832892,-3266.43749786,0.000237,30]
[392006244,1761085832903,-531.66785006,0.000237,14]
[392006245,1761085832912,-296.0874526,0.00023735,2]
[392006246,1761085832922,-2859.98,0.00023736,2]
[392006247,1761085832931,-1200.0,0.00023737,2]
[392006248,1761085832941,-8425.34394225,0.00023737,2]
[392006249,1761085832950,-1175.22205216,0.00023737,2]
[392006250,1761085832959,-198.01732179,0.00023737,2]
[392006251,1761085832969,-421.97587613,0.00023737,2]
[392006252,1761085832978,-331.16071599,0.00023737,2]
[392006253,1761085832987,-397.53729942,0.00023737,2]
[392006254,1761085832997,-188.25914454,0.00023737,2]
[392006255,1761085833009,-256.86104315,0.00023737,2]
[392006256,1761085833018,-75115.37893424,0.00023738,2]
[392006257,1761085833030,-92276.59159454,0.00023738,2]
[392006258,1761085833040,-87656.1602658,0.00023738,2]
[392006259,1761085833054,-3566.52649829,0.00023738,2]
[392006260,1761085833065,-45255.63854382,0.00023738,2]
[392006261,1761085833078,-66129.70416331,0.00023738,2]
[392006262,1761085833089,-502.59212361,0.00023773,2]
[392006263,1761085833098,-500.0,0.00023773,2]
[392006264,1761085833107,-500.0,0.00023773,2]
[392006265,1761085833116,-500.0,0.00023773,2]
[392006266,1761085833126,-152.81553816,0.00023773,2]
[392006267,1761085833135,-500.0,0.00023773,2]
[392006268,1761085833144,-500.0,0.00023773,2]
[392006269,1761085833153,-500.0,0.00023773,2]
[392006270,1761085833162,-500.0,0.00023837,2]
[392006271,1761085833172,-621.74395474,0.00023837,2]
[392006272,1761085833181,-484.42886317,0.00023837,2]